bitfinex-derivatives/quotes_BTCF0:USTF0_20251111
["timestamp","ask_amount","ask_price","bid_price","bid_amount"]
[1762839769932,0.15497188,105410.0,105400.0,0.24590446]
[1762839770738,0.15497188,105410.0,105400.0,0.04519]
[1762839771037,0.15497188,105410.0,105400.0,0.23307446]
[1762839772041,0.15497188,105410.0,105400.0,0.2701004]
[1762839772234,0.15497188,105410.0,105400.0,0.23307446]
[1762839772431,0.06007048,105410.0,105400.0,0.44798486]
[1762839772631,0.04685048,105410.0,105400.0,0.60136486]
[1762839774841,0.00334048,105410.0,105400.0,0.60136486]
[1762839775434,0.02593048,105410.0,105400.0,0.60136486]
[1762839775639,0.04839048,105410.0,105400.0,0.60136486]
[1762839778937,0.02593048,105410.0,105400.0,0.60136486]
[1762839779435,0.05768,105440.0,105430.0,0.1405034]
[1762839779640,0.15475243,105440.0,105430.0,0.13956223]
[1762839779832,0.05987803,105440.0,105430.0,0.49444563]
[1762839780228,0.04701803,105440.0,105430.0,0.50013563]
[1762839780433,0.02499803,105440.0,105430.0,0.50013563]
[1762839780837,0.15971243,105440.0,105430.0,0.26558135]
[1762839781043,0.15971243,105440.0,105430.0,0.34333567]
[1762839781242,0.15971243,105440.0,105430.0,0.49046475]
[1762839781546,0.05201803,105440.0,105430.0,0.68046475]
[1762839781843,0.00519803,105440.0,105430.0,0.68046475]
[1762839782043,0.003,105440.0,105430.0,0.68046475]
[1762839782338,0.004,105440.0,105430.0,0.68046475]
[1762839783646,0.04882,105440.0,105430.0,0.75572978]
[1762839784342,0.1436944,105440.0,105430.0,0.66084638]
[1762839784537,0.15871243,105440.0,105430.0,0.24128925]
[1762839784946,0.00619803,105440.0,105430.0,0.76282978]
[1762839785745,0.02899803,105440.0,105430.0,0.76282978]
[1762839786040,0.02899803,105440.0,105430.0,0.64342556]
[1762839786242,0.05101803,105440.0,105430.0,0.64342556]
[1762839787247,0.14589243,105440.0,105430.0,0.64342556]
[1762839787547,0.05101803,105440.0,105430.0,0.64342556]
[1762839788445,0.14589243,105440.0,105430.0,0.22854216]
[1762839788743,0.14589243,105440.0,105430.0,0.35854216]
[1762839788944,0.05101803,105440.0,105430.0,0.45342556]
[1762839789147,0.05101803,105440.0,105430.0,0.64342556]
[1762839790543,0.14589243,105440.0,105430.0,0.22854216]
[1762839790940,0.05101803,105440.0,105430.0,0.62342556]
[1762839791142,0.00619803,105440.0,105430.0,0.62342556]
[1762839791651,0.02899803,105440.0,105430.0,0.62342556]
[1762839792050,0.05101803,105440.0,105430.0,0.62342556]
[1762839794153,0.14589243,105440.0,105430.0,0.33854216]
[1762839794545,0.14589243,105440.0,105430.0,0.43342556]
[1762839794848,0.14589243,105440.0,105430.0,0.58342556]
[1762839795555,0.05101803,105440.0,105430.0,0.58342556]
[1762839795752,0.14589243,105440.0,105430.0,0.58342556]
[1762839795948,0.14589243,105440.0,105430.0,0.48854216]
[1762839796155,0.14589243,105440.0,105430.0,0.22854216]
[1762839796351,0.14589243,105440.0,105430.0,0.35854216]
[1762839797758,0.14589243,105440.0,105430.0,0.22854216]
[1762839797954,0.15871243,105440.0,105430.0,0.22854216]
[1762839798162,0.15871243,105440.0,105430.0,0.12188503]
[1762839798460,0.25257956,105440.0,105430.0,0.0236]
[1762839798960,0.25257956,105440.0,105430.0,0.04662]
[1762839799162,0.15871243,105440.0,105430.0,0.04662]
[1762839799564,0.25257956,105440.0,105430.0,0.001]
[1762839799763,0.15871243,105440.0,105430.0,0.001]
[1762839800063,0.1514935,105430.0,105420.0,0.02118245]
[1762839800263,0.24755866,105430.0,105420.0,0.02118245]
[1762839800766,0.24755866,105430.0,105420.0,0.00014245]
[1762839802064,0.24955866,105430.0,105420.0,0.00014245]
[1762839802864,0.24755866,105430.0,105420.0,0.00014245]
[1762839803164,0.25155866,105430.0,105420.0,0.00114245]
[1762839805565,0.1515115,105410.0,105400.0,0.92976]
[1762839805765,0.15370953,105410.0,105400.0,0.97292]
[1762839805964,0.15370953,105410.0,105400.0,1.04731057]
[1762839806268,0.24757666,105410.0,105400.0,0.92976]
[1762839806564,0.24757666,105410.0,105400.0,0.9508]
[1762839806758,0.24757666,105410.0,105400.0,0.97292]
[1762839807163,0.15370953,105410.0,105400.0,0.97292]
[1762839807665,0.15470953,105410.0,105400.0,0.97292]
[1762839808167,0.15470953,105410.0,105400.0,1.0678305]
[1762839808468,0.15470953,105410.0,105400.0,1.16169763]
[1762839808669,0.15770953,105410.0,105400.0,1.06778713]
[1762839808860,0.15870953,105410.0,105400.0,1.06778713]
[1762839809762,0.15870953,105410.0,105400.0,0.97392]
[1762839809962,0.25257666,105410.0,105400.0,0.93076]
[1762839810362,0.25257666,105410.0,105400.0,0.9518]
[1762839811070,0.25257666,105410.0,105400.0,0.97392]
[1762839811473,0.25257666,105410.0,105400.0,0.93076]
[1762839812165,0.25257666,105410.0,105400.0,0.9518]
[1762839812471,0.25257666,105410.0,105400.0,0.97392]
[1762839812472,0.15870953,105410.0,105400.0,0.97392]
[1762839816476,0.15870953,105410.0,105400.0,0.04416]
[1762839816772,0.15870953,105410.0,105400.0,0.15081713]
[1762839818278,0.15870953,105410.0,105400.0,0.13802713]
[1762839818870,0.15870953,105410.0,105400.0,0.04416]
[1762839819165,0.25257666,105410.0,105400.0,0.04416]
[1762839819372,0.15870953,105410.0,105400.0,0.04416]
[1762839819570,0.15870953,105410.0,105400.0,0.15081713]
[1762839821179,0.14566953,105410.0,105400.0,0.15081713]
[1762839822273,0.15870953,105410.0,105400.0,0.15081713]
[1762839822478,0.15870953,105410.0,105400.0,0.04416]
[1762839823380,0.15870953,105410.0,105400.0,0.17416]
[1762839823582,0.15870953,105410.0,105400.0,0.40802713]
[1762839824778,0.14566953,105410.0,105400.0,0.42081713]
[1762839824975,0.12400943,105410.0,105400.0,0.42081713]
[1762839825485,0.14566943,105410.0,105400.0,0.15081713]
[1762839826678,0.14566943,105410.0,105400.0,0.26081713]
[1762839826879,0.15870943,105410.0,105400.0,0.15081713]
[1762839827088,0.15870943,105410.0,105400.0,0.27081713]
[1762839828980,0.15870943,105410.0,105400.0,0.15081713]
[1762839830187,0.15870943,105410.0,105400.0,0.26081713]
[1762839830389,0.15870943,105410.0,105400.0,0.35572753]
[1762839830981,0.15870943,105410.0,105400.0,0.13802713]
[1762839833894,0.52870943,105410.0,105400.0,0.13802713]
[1762839834493,0.52870943,105410.0,105400.0,0.04416]
[1762839834692,0.52870943,105410.0,105400.0,0.13802713]
[1762839835188,0.52870943,105410.0,105400.0,0.25743135]
[1762839835586,0.52870943,105410.0,105400.0,0.49234175]
[1762839835792,0.43380803,105410.0,105400.0,0.49234175]
[1762839836094,0.52870943,105410.0,105400.0,0.35234175]
[1762839836905,0.52870943,105410.0,105400.0,0.25743135]
[1762839837097,0.52870943,105410.0,105400.0,0.35234175]
[1762839837298,0.52870943,105410.0,105400.0,0.47234175]
[1762839837503,0.52870943,105410.0,105400.0,0.35234175]
[1762839837805,0.52870943,105410.0,105400.0,0.25743135]
[1762839838501,0.52870943,105410.0,105400.0,0.13802713]
[1762839839705,0.52870943,105410.0,105400.0,0.23293753]
[1762839840594,0.43380803,105410.0,105400.0,0.23293753]
[1762839840795,0.52870943,105410.0,105400.0,0.13802713]
[1762839841600,0.52870943,105410.0,105400.0,0.35293753]
[1762839842508,0.43380803,105410.0,105400.0,0.51293753]
[1762839842801,0.42076803,105410.0,105400.0,0.52572753]
[1762839843002,0.51566943,105410.0,105400.0,0.64415844]
[1762839843308,0.62332154,105410.0,105400.0,0.25746633]
[1762839843508,0.52941943,105410.0,105400.0,0.13806211]
[1762839845103,0.62332154,105410.0,105400.0,0.13806211]
[1762839845607,0.62332154,105410.0,105400.0,0.001]
[1762839849014,0.1535904,105400.0,105390.0,0.01544301]
[1762839849309,0.61969054,105400.0,105390.0,0.01544301]
[1762839850215,0.61969054,105400.0,105390.0,0.06020301]
[1762839851005,0.52578843,105400.0,105390.0,0.03722301]
[1762839851205,0.62269054,105400.0,105390.0,0.03822301]
[1762839851613,0.62369054,105400.0,105390.0,0.06120301]
[1762839851813,0.62069054,105400.0,105390.0,0.06020301]
[1762839852013,0.62469054,105400.0,105390.0,0.15510512]
[1762839856512,0.62469054,105400.0,105390.0,0.06120301]
[1762839857813,0.71859265,105400.0,105390.0,0.01644301]
[1762839863223,0.53078843,105400.0,105390.0,0.06117301]
[1762839863522,0.62469054,105400.0,105390.0,0.01644301]
[1762839863929,0.62469054,105400.0,105390.0,0.03817301]
[1762839864224,0.62469054,105400.0,105390.0,0.01644301]
[1762839865324,0.71859265,105400.0,105390.0,0.01644301]
[1762839865619,0.1536284,105380.0,105370.0,1.04944422]
[1762839865817,0.70363065,105380.0,105370.0,1.04944422]
[1762839866429,0.70363065,105380.0,105370.0,0.93004]
[1762839866724,0.70370337,105380.0,105370.0,0.93004]
[1762839866910,0.70470337,105380.0,105370.0,0.93004]
[1762839867116,0.70470337,105380.0,105370.0,0.95177]
[1762839867316,0.70470337,105380.0,105370.0,0.93004]
[1762839869126,0.70470337,105380.0,105370.0,0.94420855]
[1762839869827,0.51689915,105380.0,105370.0,0.96593855]
[1762839870028,0.70470337,105380.0,105370.0,0.96593855]
[1762839870223,0.70470337,105380.0,105370.0,0.94420855]
[1762839871926,0.70470337,105380.0,105370.0,0.96593855]
[1762839872727,0.70470337,105380.0,105370.0,0.98888855]
[1762839874924,0.61080126,105380.0,105370.0,0.98888855]
[1762839875125,0.61080126,105380.0,105370.0,1.08279066]
[1762839877129,0.61080126,105380.0,105370.0,0.05884855]
[1762839880534,0.70470337,105380.0,105370.0,0.05884855]
[1762839882338,0.61080126,105380.0,105370.0,0.05884855]
[1762839882834,0.61080126,105380.0,105370.0,0.15275066]
[1762839883237,0.61080126,105380.0,105370.0,0.05884855]
[1762839888234,0.70470337,105380.0,105370.0,0.03589855]
[1762839888640,0.70470337,105380.0,105370.0,0.01416855]
[1762839888842,0.70470337,105380.0,105370.0,0.02173]
[1762839889035,0.70470337,105380.0,105370.0,0.05921895]
[1762839889542,0.70470337,105380.0,105370.0,0.03626895]
[1762839889736,0.70470337,105380.0,105370.0,0.01453895]
[1762839889932,0.1539675,105370.0,105360.0,0.13717456]
[1762839890140,0.60006764,105370.0,105360.0,0.13717456]
[1762839890442,0.60006764,105370.0,105360.0,0.23212106]
[1762839891342,0.60006764,105370.0,105360.0,0.23312106]
[1762839891938,0.60206764,105370.0,105360.0,0.13817456]
[1762839892147,0.60206764,105370.0,105360.0,0.04427245]
[1762839892340,0.60206764,105370.0,105360.0,0.02294245]
[1762839892540,0.60206764,105370.0,105360.0,0.00114245]
[1762839892942,0.60206764,105370.0,105360.0,0.00014245]
[1762839893248,0.60206764,105370.0,105360.0,0.23212106]
[1762839893447,0.60206764,105370.0,105360.0,0.13717456]
[1762839893746,0.60206764,105370.0,105360.0,0.0576399]
[1762839894351,0.60206764,105370.0,105360.0,0.0363099]
[1762839894850,0.50816553,105370.0,105360.0,0.0145099]
[1762839895044,0.60206764,105370.0,105360.0,0.0145099]
[1762839896147,0.60206764,105370.0,105360.0,0.0373999]
[1762839897348,0.60206764,105370.0,105360.0,0.0145099]
[1762839898241,0.60206764,105370.0,105360.0,0.13391412]
[1762839899049,0.69596975,105370.0,105360.0,0.0145099]
[1762839899352,0.1529265,105360.0,105350.0,0.24001646]
[1762839899540,0.58902664,105360.0,105350.0,0.24001646]
[1762839899741,0.58902664,105360.0,105350.0,0.33497196]
[1762839900251,0.58902664,105360.0,105350.0,0.42887407]
[1762839900649,0.58902664,105360.0,105350.0,0.33491857]
[1762839900844,0.68292875,105360.0,105350.0,0.16588422]
[1762839901044,0.68292875,105360.0,105350.0,0.06061601]
[1762839901248,0.49512453,105360.0,105350.0,0.24847362]
[1762839901447,0.49812453,105360.0,105350.0,0.36887784]
[1762839901749,0.59202664,105360.0,105350.0,0.18002023]
[1762839901949,0.68592875,105360.0,105350.0,0.01513601]
[1762839902156,0.59202664,105360.0,105350.0,0.06061601]
[1762839902946,0.49812453,105360.0,105350.0,0.06061601]
[1762839903146,0.5921513,105360.0,105350.0,0.06061601]
[1762839903745,0.5921513,105360.0,105350.0,0.03802601]
[1762839903946,0.5921513,105360.0,105350.0,0.01513601]
[1762839905256,0.68617807,105360.0,105350.0,0.01513601]
[1762839905552,0.68617807,105360.0,105340.0,0.00014245]
[1762839905553,0.1529355,105350.0,105340.0,0.00014245]
[1762839905753,0.55924651,105350.0,105340.0,0.00014245]
[1762839905944,0.55924651,105350.0,105340.0,0.0143482]
[1762839906944,0.56124651,105350.0,105340.0,0.0143482]
[1762839907553,0.05798,105340.0,105330.0,0.00012281]
[1762839907854,0.05798,105340.0,105320.0,0.19724716]
[1762839907855,0.1529535,105330.0,105320.0,0.24272716]
[1762839908052,0.48515153,105330.0,105320.0,0.12332294]
[1762839908353,0.48515153,105330.0,105320.0,0.04548]
[1762839909856,0.48815153,105330.0,105320.0,0.12275043]
[1762839910056,0.48815153,105330.0,105320.0,0.24275043]
[1762839910251,0.48815153,105330.0,105320.0,0.26050677]
[1762839910454,0.48815153,105330.0,105320.0,0.14050677]
[1762839910852,0.48815153,105330.0,105320.0,0.04648]
[1762839911153,0.48815153,105330.0,105320.0,0.001]
[1762839911358,0.48815153,105330.0,105310.0,0.04562245]
[1762839911359,0.1529625,105320.0,105310.0,0.04562245]
[1762839911651,0.56931022,105320.0,105310.0,1e-08]
[1762839912254,0.56931022,105320.0,105310.0,0.01465902]
[1762839912560,0.57131022,105320.0,105310.0,0.01465902]
[1762839912759,0.52699022,105320.0,105310.0,1e-08]
[1762839913151,0.57131022,105320.0,105310.0,0.01453214]
[1762839913659,0.1529715,105310.0,105300.0,0.00023741]
[1762839913854,0.5491963,105310.0,105300.0,0.01449848]
[1762839914158,0.32385803,105310.0,105300.0,0.25930585]
[1762839914358,0.30219803,105310.0,105300.0,0.64333262]
[1762839914548,0.44150953,105310.0,105300.0,0.33027848]
[1762839914854,0.36017803,105310.0,105300.0,0.15400525]
[1762839915050,0.36117803,105310.0,105300.0,0.45430525]
[1762839915250,0.36117803,105310.0,105300.0,0.54930585]
[1762839915450,0.34751803,105310.0,105300.0,0.54930585]
[1762839915660,0.45616953,105310.0,105300.0,0.15400525]
[1762839915858,0.36117803,105310.0,105300.0,0.56900585]
[1762839916044,0.45616953,105310.0,105300.0,0.15500525]
[1762839916252,0.36117803,105310.0,105300.0,0.55000585]
[1762839916558,0.05798,105340.0,105330.0,0.04548]
[1762839916856,0.49514253,105340.0,105330.0,0.04548]
[1762839917658,0.49521686,105340.0,105330.0,0.04548]
[1762839917860,0.49621686,105340.0,105330.0,0.04548]
[1762839918048,0.50021686,105340.0,105330.0,0.04648]
[1762839918449,0.50021686,105340.0,105330.0,0.25050677]
[1762839918854,0.40525236,105340.0,105330.0,0.50875027]
[1762839920262,0.34507433,105340.0,105330.0,0.74509839]
[1762839920562,0.34727236,105340.0,105330.0,0.98241839]
[1762839921454,0.34727236,105340.0,105330.0,1.05975261]
[1762839921656,0.36987236,105340.0,105330.0,0.87169907]
[1762839921858,0.36987236,105340.0,105330.0,0.96572584]
[1762839922052,0.36987236,105340.0,105330.0,0.72840584]
[1762839922456,0.36987236,105340.0,105330.0,0.96572584]
[1762839922757,0.34727236,105340.0,105330.0,0.96572584]
[1762839922961,0.34727236,105340.0,105330.0,0.82243261]
[1762839923168,0.34727236,105340.0,105330.0,1.05975261]
[1762839923662,0.34727236,105340.0,105330.0,0.82243261]
[1762839923863,0.34727236,105340.0,105330.0,1.05975261]
[1762839924054,0.34727236,105340.0,105330.0,0.82243261]
[1762839924462,0.34727236,105340.0,105330.0,1.05975261]
[1762839924762,0.34727236,105340.0,105330.0,0.82243261]
[1762839924964,0.34727236,105340.0,105330.0,1.05975261]
[1762839925154,0.34727236,105340.0,105330.0,0.82243261]
[1762839925354,0.34727236,105340.0,105330.0,1.05975261]
[1762839925554,0.34727236,105340.0,105330.0,0.82243261]
[1762839925754,0.39103236,105340.0,105330.0,0.82243261]
[1762839925959,0.39103236,105340.0,105330.0,1.05975261]
[1762839926159,0.39103236,105340.0,105330.0,0.82243261]
[1762839926359,0.34727236,105340.0,105330.0,1.05975261]
[1762839926560,0.07507433,105340.0,105330.0,1.15468781]
[1762839926857,0.00014245,105350.0,105340.0,0.1251845]
[1762839927060,0.30234048,105350.0,105340.0,0.53921127]
[1762839927256,0.30234048,105350.0,105340.0,0.68132762]
[1762839927864,0.32894048,105350.0,105340.0,0.68232762]
[1762839928059,0.30634048,105350.0,105340.0,0.68232762]
[1762839928952,0.30634048,105350.0,105340.0,0.80173184]
[1762839929459,0.30734048,105350.0,105340.0,0.80173184]
[1762839929956,0.30041135,105350.0,105340.0,2.1585648]
[1762839930261,0.05742,105370.0,105360.0,0.0949465]
[1762839930456,0.37961803,105370.0,105360.0,0.59300004]
[1762839930673,0.37961803,105370.0,105360.0,0.23640364]
[1762839930854,0.37961803,105370.0,105360.0,0.46135014]
[1762839931452,0.38561803,105370.0,105360.0,0.46235014]
[1762839931663,0.48055553,105370.0,105360.0,0.46235014]
[1762839931863,0.38561803,105370.0,105360.0,0.46235014]
[1762839932063,0.38561803,105370.0,105360.0,0.66235014]
[1762839932455,0.48055553,105370.0,105360.0,0.66235014]
[1762839932868,0.38561803,105370.0,105360.0,0.66235014]
[1762839933169,0.38361803,105370.0,105360.0,0.66135014]
[1762839933767,0.33685803,105370.0,105360.0,0.75537691]
[1762839933967,0.33685803,105370.0,105360.0,0.99265691]
[1762839934169,0.33685803,105370.0,105360.0,0.75537691]
[1762839934361,0.33685803,105370.0,105360.0,0.99265691]
[1762839934560,0.33685803,105370.0,105360.0,0.75537691]
[1762839934763,0.35945803,105370.0,105360.0,0.75537691]
[1762839934961,0.35945803,105370.0,105360.0,0.99265691]
[1762839935674,0.091,105370.0,105360.0,1.08756508]
[1762839935873,0.01397245,105380.0,105370.0,0.0949375]
[1762839935874,0.00014245,105380.0,105370.0,0.0949375]
[1762839936175,0.39773245,105380.0,105370.0,0.90946383]
[1762839936566,0.39773245,105380.0,105370.0,0.767132]
[1762839936767,0.05773245,105380.0,105370.0,0.767132]
[1762839936968,0.33073245,105380.0,105370.0,1.004372]
[1762839937168,0.06073245,105380.0,105370.0,1.004372]
[1762839937372,0.01697245,105380.0,105370.0,1.004372]
[1762839937679,0.34797245,105380.0,105370.0,1.004372]
[1762839937971,0.00414245,105380.0,105370.0,1.08027215]
[1762839938178,0.00414245,105380.0,105370.0,0.84303215]
[1762839938376,0.00414245,105380.0,105370.0,1.08027215]
[1762839940373,2.45e-06,105380.0,105370.0,1.17429892]
[1762839940576,0.01383,105390.0,105380.0,0.0949285]
[1762839940876,0.36383,105390.0,105380.0,0.7349663]
[1762839941070,0.36383,105390.0,105380.0,1.06710546]
[1762839942270,0.35,105390.0,105380.0,1.06910546]
[1762839943071,0.35,105390.0,105380.0,1.07110546]
[1762839943272,0.01397245,105400.0,105390.0,0.0949195]
[1762839943472,0.01397245,105400.0,105390.0,0.58297304]
[1762839943672,0.30397245,105400.0,105390.0,0.96241575]
[1762839943869,0.34993048,105400.0,105390.0,0.96237741]
[1762839944186,0.34993048,105400.0,105390.0,0.33118898]
[1762839944478,0.34993048,105400.0,105390.0,0.45118898]
[1762839944677,0.34993048,105400.0,105390.0,0.33118898]
[1762839944873,0.34993048,105400.0,105390.0,0.58218898]
[1762839945081,0.34993048,105400.0,105390.0,0.67621575]
[1762839945776,0.34993048,105400.0,105390.0,0.67721575]
[1762839946771,0.34993048,105400.0,105390.0,0.91441575]
[1762839946972,0.34993048,105400.0,105390.0,0.67721575]
[1762839947472,0.34993048,105400.0,105390.0,0.42721575]
[1762839947673,0.34993048,105400.0,105390.0,0.44318898]
[1762839948186,0.34993048,105400.0,105390.0,0.33318898]
[1762839948374,0.34993048,105400.0,105390.0,0.47318898]
[1762839948577,0.34993048,105400.0,105390.0,0.56721575]
[1762839948774,0.34993048,105400.0,105390.0,0.71721575]
[1762839949081,0.34993048,105400.0,105390.0,0.95441575]
[1762839949280,0.34993048,105400.0,105390.0,0.71721575]
[1762839949475,0.34993048,105400.0,105390.0,1.04929691]
[1762839949681,0.09617048,105400.0,105390.0,0.81209691]
[1762839949883,0.09617048,105400.0,105390.0,1.04929691]
[1762839950082,0.06097048,105400.0,105390.0,1.04929691]
[1762839950388,0.31617048,105400.0,105390.0,1.04929691]
[1762839950586,0.33914048,105400.0,105390.0,1.04929691]
[1762839950887,0.31617048,105400.0,105390.0,1.04929691]
[1762839951288,0.36097048,105400.0,105390.0,0.81209691]
[1762839951479,0.33914048,105400.0,105390.0,1.04929691]
[1762839951676,0.33914048,105400.0,105390.0,0.81209691]
[1762839951879,0.36097048,105400.0,105390.0,1.04929691]
[1762839952076,0.01383,105420.0,105390.0,1.04929691]
[1762839952283,0.06082803,105420.0,105410.0,0.28295504]
[1762839952476,0.40082803,105420.0,105410.0,0.62295504]
[1762839952778,0.40082803,105420.0,105410.0,0.67073297]
[1762839953079,0.40082803,105420.0,105410.0,0.90789297]
[1762839953286,0.40082803,105420.0,105410.0,0.23583147]
[1762839953475,0.40082803,105420.0,105410.0,0.33073297]
[1762839953680,0.40082803,105420.0,105410.0,0.61073297]
[1762839953880,0.40082803,105420.0,105410.0,0.62530244]
[1762839954986,0.40282803,105420.0,105410.0,0.67879946]
[1762839955484,0.40282803,105420.0,105410.0,0.15637417]
[1762839955685,0.49772053,105420.0,105410.0,0.01456947]
[1762839955879,0.05845,105410.0,105400.0,0.00014245]
[1762839956080,0.37064803,105410.0,105400.0,0.00014245]
[1762839956280,0.46554953,105410.0,105400.0,0.14249886]
[1762839956588,0.46554953,105410.0,105400.0,0.15775074]
[1762839956793,0.61307332,105410.0,105400.0,4.33e-06]
[1762839956987,0.1516705,105400.0,105390.0,0.93]
[1762839957180,0.51386853,105400.0,105390.0,0.93]
[1762839958390,0.41895803,105400.0,105390.0,0.94506034]
[1762839958686,0.51386843,105400.0,105390.0,0.94506034]
[1762839958892,0.51486843,105400.0,105390.0,0.94506034]
[1762839959086,0.51486843,105400.0,105390.0,0.94606034]
[1762839959591,0.51386843,105400.0,105390.0,0.94506034]
[1762839959787,0.51586843,105400.0,105390.0,0.94506034]
[1762839960088,0.51586843,105400.0,105390.0,0.91006034]
[1762839960495,0.66339222,105400.0,105390.0,0.87506034]
[1762839960797,0.51586843,105400.0,105390.0,0.87506034]
[1762839962996,0.51586843,105400.0,105390.0,0.86]
[1762839963602,0.66339222,105400.0,105390.0,0.86]
[1762839964191,0.51586843,105400.0,105390.0,0.86]
[1762839965102,0.60396219,105400.0,105390.0,0.86]
[1762839967205,0.1489895,105390.0,105380.0,0.01531036]
[1762839967392,0.59928129,105390.0,105380.0,0.01531036]
[1762839968294,0.60028129,105390.0,105380.0,0.01531036]
[1762839969096,0.59928129,105390.0,105380.0,0.01531036]
[1762839969302,0.51318753,105390.0,105380.0,0.06075036]
[1762839970504,0.51318753,105390.0,105380.0,0.03797036]
[1762839971204,0.51318753,105390.0,105380.0,0.06075036]
[1762839971905,0.50304753,105390.0,105380.0,0.07431036]
[1762839973004,0.60128129,105390.0,105380.0,0.01531036]
[1762839973402,0.12039753,105390.0,105380.0,0.37431036]
[1762839973608,0.14304753,105390.0,105380.0,0.25733262]
[1762839973803,0.14304753,105390.0,105380.0,0.36733262]
[1762839974107,0.14304753,105390.0,105380.0,0.58733262]
[1762839974497,0.14304753,105390.0,105380.0,0.07431036]
[1762839974806,0.14304753,105390.0,105380.0,0.44240412]
[1762839975008,0.14104753,105390.0,105380.0,0.44340412]
[1762839975307,0.00219803,105390.0,105380.0,0.53833262]
[1762839975606,0.00219803,105390.0,105380.0,0.53933262]
[1762839976002,0.0949145,105400.0,105390.0,0.1539195]
[1762839976203,0.00219803,105400.0,105390.0,0.58201326]
[1762839976707,0.09710853,105400.0,105390.0,0.58201326]
[1762839976907,0.00219803,105400.0,105390.0,0.58201326]
[1762839977204,0.00319803,105400.0,105390.0,0.58201326]
[1762839978093,0.00219803,105400.0,105390.0,0.58201326]
[1762839978306,0.00219803,105400.0,105390.0,0.58301326]
[1762839978902,0.09710853,105400.0,105390.0,0.48909376]
[1762839979103,0.09710853,105400.0,105390.0,0.57408184]
[1762839979812,0.09710853,105400.0,105390.0,0.66900134]
[1762839980012,0.00219803,105400.0,105390.0,0.66900134]
[1762839980312,0.00219803,105400.0,105390.0,0.58401326]
[1762839981310,0.11767815,105410.0,105400.0,0.1530805]
[1762839981517,0.14270618,105410.0,105400.0,0.05817]
[1762839982118,0.14270618,105410.0,105400.0,0.35125184]
[1762839982413,0.04780048,105410.0,105400.0,0.62616234]
[1762839983012,0.14270198,105410.0,105400.0,0.53125184]
[1762839983312,0.14370198,105410.0,105400.0,0.53125184]
[1762839983613,0.14370198,105410.0,105400.0,0.23125184]
[1762839983812,0.14370198,105410.0,105400.0,0.05817]
[1762839984914,0.04880048,105410.0,105400.0,0.28208926]
[1762839985111,0.04880048,105410.0,105400.0,0.65091902]
[1762839986103,0.38880048,105410.0,105400.0,0.65091902]
[1762839986410,0.34334048,105410.0,105400.0,0.65091902]
[1762839986803,0.34334048,105410.0,105400.0,0.55110685]
[1762839987712,0.48370198,105410.0,105400.0,0.05817]
[1762839988608,0.34334048,105410.0,105400.0,0.55110675]
[1762839989618,0.34334048,105410.0,105400.0,0.69403558]
[1762839989915,0.34114245,105410.0,105400.0,1.02610773]
[1762839990101,0.27114245,105410.0,105400.0,1.14551195]
[1762839990505,0.27114245,105410.0,105400.0,1.02610773]
[1762839990701,0.05903,105430.0,105420.0,0.1356325]
[1762839990910,0.48611153,105430.0,105420.0,0.1257811]
[1762839991515,0.48611153,105430.0,105420.0,0.18037201]
[1762839991712,0.48611153,105430.0,105420.0,0.07496091]
[1762839991912,0.1539225,105420.0,105410.0,0.2139499]
[1762839992218,0.47612053,105420.0,105410.0,0.12592355]
[1762839993007,0.47612053,105420.0,105410.0,0.08518355]
[1762839993213,0.56614688,105420.0,105410.0,0.00014245]
[1762839993506,0.1539315,105410.0,105400.0,0.0850411]
[1762839993718,0.55415588,105410.0,105400.0,0.0850411]
[1762839993912,0.46612953,105410.0,105400.0,0.0850411]
[1762839994217,0.1539405,105400.0,105390.0,0.2209806]
[1762839994409,0.37122803,105400.0,105390.0,0.29767873]
[1762839994609,0.46613853,105400.0,105390.0,0.29767873]
[1762839995420,0.37122803,105400.0,105390.0,0.29767873]
[1762839995620,0.46613853,105400.0,105390.0,0.20275923]
[1762839996020,0.46613853,105400.0,105390.0,0.20375923]
[1762839996320,0.46613853,105400.0,105390.0,0.33475923]
[1762839996520,0.46613853,105400.0,105390.0,0.20475923]
[1762839996714,0.46613853,105400.0,105390.0,0.29278558]
[1762839997219,0.46613853,105400.0,105390.0,0.20475923]
[1762839997420,0.46613853,105400.0,105390.0,0.30266398]
[1762839998118,0.06122803,105400.0,105390.0,0.64166398]
[1762839998420,0.06122803,105400.0,105390.0,0.42072153]
[1762839998822,0.15713853,105400.0,105390.0,0.32480203]
[1762839999422,0.06222803,105400.0,105390.0,0.54972153]
[1762839999618,0.06222803,105400.0,105390.0,0.75972153]
[1762840000720,0.15713853,105400.0,105390.0,0.66480203]
[1762840001025,0.15713853,105400.0,105390.0,0.66972153]
[1762840002715,0.06222803,105400.0,105390.0,0.66972153]
[1762840006117,0.001,105400.0,105390.0,0.76468788]
[1762840006426,0.00014245,105410.0,105400.0,0.1359305]
[1762840006727,0.00014245,105410.0,105400.0,0.64709907]
[1762840008817,0.00014245,105410.0,105400.0,0.91743475]
[1762840010125,0.02277245,105410.0,105400.0,0.91743475]
[1762840010931,0.14129198,105410.0,105400.0,0.81252425]
[1762840011125,0.04503048,105410.0,105400.0,0.90743475]
[1762840011428,0.05854048,105410.0,105400.0,0.73685924]
[1762840012829,0.05854048,105410.0,105400.0,0.63710223]
[1762840015830,0.00014245,105410.0,105400.0,0.63710223]
[1762840016433,0.04340245,105410.0,105400.0,0.63710223]
[1762840016632,0.05661245,105410.0,105400.0,0.63710223]
[1762840016933,0.05661245,105410.0,105400.0,0.75637649]
[1762840018128,0.00014245,105410.0,105400.0,0.75637649]
[1762840019836,0.00014245,105410.0,105400.0,0.85124864]
[1762840020140,0.05683,105430.0,105420.0,0.1336325]
[1762840020436,0.05902803,105430.0,105420.0,0.57684066]
[1762840020933,0.15391153,105430.0,105420.0,0.57684066]
[1762840021134,0.05902803,105430.0,105420.0,0.57684066]
[1762840021323,0.06202803,105430.0,105420.0,0.57684066]
[1762840021528,0.06302803,105430.0,105420.0,0.57684066]
[1762840021832,0.15791153,105430.0,105420.0,0.48194816]
[1762840022136,0.15791153,105430.0,105420.0,0.21194816]
[1762840022436,0.15791153,105430.0,105420.0,0.12391865]
[1762840022636,0.15791153,105430.0,105420.0,0.51881115]
[1762840023137,0.06302803,105430.0,105420.0,0.51881115]
[1762840023438,0.06302803,105430.0,105420.0,0.60684066]
[1762840024039,0.06302803,105430.0,105420.0,0.52166201]
[1762840024245,0.06302803,105430.0,105420.0,0.72608973]
[1762840024535,0.06302803,105430.0,105420.0,0.64093627]
[1762840024733,0.15791153,105430.0,105420.0,0.24604377]
[1762840024938,0.15791153,105430.0,105420.0,0.45093627]
[1762840025337,0.15791153,105430.0,105420.0,0.26801426]
[1762840025534,0.15791153,105430.0,105420.0,0.24604377]
[1762840026437,0.15791153,105430.0,105420.0,0.36604377]
[1762840026639,0.15791153,105430.0,105420.0,0.46093627]
[1762840026833,0.06302803,105430.0,105420.0,0.37290676]
[1762840027039,0.06302803,105430.0,105420.0,0.56290676]
[1762840028335,0.15791153,105430.0,105420.0,0.56290676]
[1762840028540,0.15791153,105430.0,105420.0,0.15801426]